fUST/lending_fUST_20260114
["ID","MTS","AMOUNT","RATE_DAILY","PERIOD"]
[401787469,1768375851957,-800.0,0.00015068,2]
[401787471,1768375851967,-491.12165105,0.00015106,12]
[401787474,1768375851976,-160.0,0.00015111,2]
[401787475,1768375851985,-500.0,0.00015202,2]
[401787477,1768375851995,-3047.0,0.00015222,2]
[401787479,1768375852004,-3092.96547559,0.00015298,2]
[401787481,1768375852013,-992.48,0.000153,2]
[401787484,1768375852024,-640.24385345,0.00015305,2]
[401787486,1768375852034,-1200.0,0.00015316,2]
[401787488,1768375852043,-211.66599686,0.00015342,2]
[401787490,1768375852052,-2000.0,0.00015342,2]
[401787492,1768375852062,-2000.0,0.00015342,2]
[401787494,1768375852070,-2000.0,0.00015342,2]
[401787495,1768375852080,-248.49065547,0.00015342,2]
[401787498,1768375852090,-235.30085754,0.00015342,2]
[401787499,1768375852099,-2000.0,0.00015342,2]
[401787501,1768375852108,-1373.84265648,0.00015342,2]
[401787503,1768375852118,-2000.0,0.00015342,2]
[401787505,1768375852127,-655.35549971,0.00015342,2]
[401787507,1768375852137,-2000.0,0.00015342,2]
[401787509,1768375852150,-728.0,0.00015391,2]
[401787511,1768375852171,-2500.0,0.00015464,2]
[401787513,1768375852183,-2500.0,0.00015464,2]
[401787515,1768375852192,-2500.0,0.00015464,2]
[401787518,1768375852202,-671.14126243,0.00015464,2]
[401787520,1768375852211,-2500.0,0.00015464,2]
[401787522,1768375852221,-2500.0,0.00015464,2]
[401787524,1768375852230,-2500.0,0.00015464,2]
[401787525,1768375852240,-2500.0,0.00015464,2]
[401787527,1768375852250,-2500.0,0.00015464,2]
[401787529,1768375852263,-2500.0,0.00015464,2]
[401787531,1768375852272,-2500.0,0.00015464,2]
[401787534,1768375852284,-500.0,0.00015476,2]
[401787536,1768375852305,-1000.0,0.00015486,2]
[401787538,1768375852327,-3000.0,0.00015555,2]
[401787540,1768375852343,-491.12165105,0.00015723,14]
[401787542,1768375852353,-1500.0,0.00015749,2]
[401787543,1768375852363,-500.0,0.0001575,2]
[401787545,1768375852375,-992.48,0.000158,2]
[401787547,1768375852384,-3207.40519818,0.00015846,2]
[401787549,1768375852393,-663.93287602,0.00015853,2]
[401787551,1768375852402,-1500.0,0.00015864,2]
[401787553,1768375852411,-160.0,0.00015872,2]
[401787555,1768375852421,-2500.0,0.0001589,2]
[401787557,1768375852430,-2500.0,0.0001589,2]
[401787559,1768375852439,-2500.0,0.0001589,2]
[401787561,1768375852449,-380.12579905,0.0001589,2]
[401787563,1768375852459,-2500.0,0.0001589,2]
[401787565,1768375852468,-2500.0,0.0001589,2]
[401787567,1768375852477,-500.0,0.00016,2]
[401787569,1768375852485,-421.0,0.00016,2]
[401787571,1768375852495,-3000.0,0.00016012,2]
[401787573,1768375852506,-3053.7588585,0.00016012,2]
[401787575,1768375852515,-3000.0,0.00016012,2]
[401787576,1768375852524,-3000.0,0.00016012,2]
[401787579,1768375852534,-371.52284537,0.00016012,2]
[401787580,1768375852543,-3000.0,0.00016012,2]
[401787583,1768375852553,-1416.13825137,0.00016012,2]
[401787585,1768375852562,-3000.0,0.00016012,2]
[401787586,1768375852571,-3000.0,0.00016012,2]
[401787588,1768375852582,-3000.0,0.00016012,2]
[401787590,1768375852593,-500.0,0.00016024,2]
[401787592,1768375852604,-728.0,0.00016031,2]
[401787594,1768375852613,-1600.0,0.00016164,2]
[401787596,1768375852622,-1036.79173832,0.00016245,2]
[401787598,1768375852631,-500.0,0.00016298,2]
[401787600,1768375852642,-992.48,0.000163,2]
[401787602,1768375852650,-491.12165105,0.0001634,15]
[401787604,1768375852660,-728.0,0.00016352,2]
[401787606,1768375852669,-3326.07919052,0.00016394,2]
[401787609,1768375852678,-688.49839244,0.00016401,2]
[401787610,1768375852687,-1800.0,0.00016412,2]
[401787612,1768375852695,-18780.42235644,0.00016437,2]
[401787614,1768375852704,-500.0,0.00016438,2]
[401787616,1768375852714,-500.0,0.00016438,2]
[401787618,1768375852723,-500.0,0.00016438,2]
[401787620,1768375852733,-500.0,0.00016438,2]
[401787622,1768375852743,-500.0,0.00016438,2]
[401787624,1768375852752,-367.29391014,0.00016438,2]
[401787626,1768375852761,-500.0,0.00016438,2]
[401787628,1768375852771,-595.30780858,0.00016438,2]
[401787630,1768375852781,-151.0,0.00016438,2]
[401787632,1768375852791,-151.0,0.00016438,2]
[401787634,1768375852800,-151.0,0.00016438,2]
[401787636,1768375852810,-151.0,0.00016438,2]
[401787638,1768375852819,-151.0,0.00016438,2]
[401787640,1768375852829,-202.375128,0.00016438,2]
[401787642,1768375852838,-151.0,0.00016438,2]
[401787644,1768375852847,-151.0,0.00016438,2]
[401787645,1768375852856,-179.180636,0.00016438,2]
[401787647,1768375852866,-200.0,0.00016438,2]
[401787649,1768375852875,-261.329291,0.00016438,2]
[401787651,1768375852885,-261.329291,0.00016438,2]
[401787653,1768375852894,-261.329291,0.00016438,2]
[401787655,1768375852903,-261.329291,0.00016438,2]
[401787657,1768375852912,-261.329291,0.00016438,2]
[401787659,1768375852922,-261.329291,0.00016438,2]
[401787661,1768375852932,-261.329291,0.00016438,2]
[401787663,1768375852942,-261.329291,0.00016438,2]
[401787665,1768375852952,-261.329291,0.00016438,2]
[401787667,1768375852961,-261.329291,0.00016438,2]
[401787669,1768375852971,-261.329291,0.00016438,2]
[401787671,1768375852980,-261.329291,0.00016438,2]
[401787673,1768375852990,-261.329291,0.00016438,2]
[401787675,1768375852999,-261.329291,0.00016438,2]
[401787677,1768375853009,-261.329291,0.00016438,2]
[401787679,1768375853018,-261.329291,0.00016438,2]
[401787680,1768375853028,-261.329291,0.00016438,2]
[401787682,1768375853038,-261.329291,0.00016438,2]
[401787684,1768375853048,-261.329291,0.00016438,2]
[401787686,1768375853057,-261.329287,0.00016438,2]
[401787688,1768375853066,-200.0,0.00016438,3]
[401787690,1768375853076,-200.0,0.00016438,3]
[401787692,1768375853085,-200.0,0.00016438,3]
[401787694,1768375853094,-200.0,0.00016438,3]
[401787696,1768375853104,-200.0,0.00016438,3]
[401787698,1768375853113,-200.0,0.00016438,3]
[401787700,1768375853123,-151.0,0.00016438,2]
[401787702,1768375853132,-151.0,0.00016438,2]
[401787704,1768375853142,-151.0,0.00016438,2]
[401787706,1768375853151,-151.0,0.00016438,2]
[401787708,1768375853161,-151.0,0.00016438,2]
[401787710,1768375853170,-151.0,0.00016438,2]
[401787712,1768375853179,-151.0,0.00016438,2]
[401787714,1768375853188,-151.0,0.00016438,2]
[401787716,1768375853197,-151.0,0.00016438,2]
[401787718,1768375853207,-151.0,0.00016438,2]
[401787720,1768375853217,-151.0,0.00016438,2]
[401787722,1768375853226,-151.0,0.00016438,2]
[401787724,1768375853236,-151.0,0.00016438,2]
[401787726,1768375853246,-151.0,0.00016438,2]
[401787728,1768375853260,-203.817058,0.00016438,2]
[401787730,1768375853276,-164.26686219,0.00016438,2]
[401787732,1768375853285,-3000.0,0.00016438,2]
[401787734,1768375853295,-3000.0,0.00016438,2]
[401787744,1768375853381,-3000.0,0.00016438,2]
[401787746,1768375853400,-3000.0,0.00016438,2]
[401787747,1768375853409,-2319.68437302,0.00016438,2]
[401787749,1768375853419,-260.29560408,0.00016438,2]
[401787751,1768375853428,-184.29,0.0001644,2]
[401787753,1768375853438,-184.29,0.0001644,2]
[401787755,1768375853447,-184.29,0.0001644,2]
[401787756,1768375853457,-184.29,0.0001644,2]
[401787758,1768375853466,-200.0,0.00016473,2]
[401787760,1768375853476,-1613.0,0.00016516,2]
[401787762,1768375853485,-1613.0,0.00016516,2]
[401787764,1768375853494,-3500.0,0.0001656,2]
[401787766,1768375853503,-3500.0,0.0001656,2]
[401787768,1768375853513,-3392.75982988,0.0001656,2]
[401787770,1768375853523,-3500.0,0.0001656,2]
[401787772,1768375853532,-3500.0,0.0001656,2]
[401787774,1768375853542,-3500.0,0.0001656,2]
[401787776,1768375853551,-3500.0,0.0001656,2]
[401787778,1768375853561,-500.0,0.00016572,2]
[401787780,1768375853570,-1000.0,0.000167,2]
[401787781,1768375853580,-1000.0,0.000167,2]
[401787783,1768375853590,-1000.0,0.000167,2]
[401787785,1768375853599,-1060.1,0.00016712,2]
[401787787,1768375853609,-992.48,0.000168,2]
[401787789,1768375853619,-728.0,0.0001682,2]
[401787791,1768375853629,-728.0,0.0001682,2]
[401787793,1768375853639,-286.5314506,0.00016845,2]
[401787795,1768375853649,-14150.53090947,0.00016911,2]
[401787797,1768375853658,-180.18018018,0.0001694,2]
[401787799,1768375853668,-3449.14412057,0.00016942,2]
[401787801,1768375853677,-713.97283296,0.00016949,2]
[401787803,1768375853686,-625.457509,0.0001695,7]
[401787805,1768375853696,-491.12165105,0.00016956,16]
[401787807,1768375853706,-2100.0,0.0001696,2]
[401787809,1768375853715,-1060.1,0.00016986,2]
[401787810,1768375853725,-3087.94374426,0.00016986,2]
[401787812,1768375853735,-3500.0,0.00016986,2]
[401787814,1768375853744,-3500.0,0.00016986,2]
[401787816,1768375853754,-3500.0,0.00016986,2]
[401787818,1768375853763,-664.46405627,0.00017,2]
[401787820,1768375853773,-1499.18967412,0.00017,2]
[401787822,1768375853783,-1000.0,0.00017035,2]
[401787824,1768375853793,-244.0,0.00017035,2]
[401787826,1768375853802,-579.277498,0.00017063,7]
[401787828,1768375853812,-500.0,0.0001707,7]
[401787830,1768375853821,-3159.26531678,0.00017108,2]
[401787832,1768375853831,-4000.0,0.00017108,2]
[401787834,1768375853841,-4000.0,0.00017108,2]
[401787835,1768375853850,-4000.0,0.00017108,2]
[401787837,1768375853861,-4000.0,0.00017108,2]
[401787839,1768375853870,-4000.0,0.00017108,2]
[401787841,1768375853880,-629.0,0.00017159,2]
[401787843,1768375853890,-1367.0,0.00017159,2]
[401787845,1768375853899,-417.0,0.00017159,2]
[401787847,1768375853909,-417.0,0.00017159,2]
[401787849,1768375853919,-715.0,0.00017159,2]
[401787851,1768375853929,-178.0,0.00017159,2]
[401787853,1768375853938,-160.0,0.00017173,3]
[401787854,1768375853948,-17332.374762,0.00017193,7]
[401787856,1768375853957,-1553.872057,0.00017199,7]
[401787858,1768375853967,-1060.1,0.0001726,2]
[401787860,1768375853977,-2400.0,0.0001726,2]
[401787862,1768375853986,-992.48,0.000173,2]
[401787864,1768375853996,-160.0,0.00017363,4]
[401787866,1768375854006,-728.0,0.00017367,2]
[401787867,1768375854015,-5000.0,0.00017412,2]
[401787869,1768375854024,-3576.76245303,0.0001749,2]
[401787871,1768375854034,-740.38982778,0.00017497,2]
[401787873,1768375854043,-400.0,0.000175,2]
[401787875,1768375854052,-1246.416256,0.000175,2]
[401787877,1768375854062,-2400.0,0.00017508,2]
[401787879,1768375854072,-1060.1,0.00017534,2]
[401787881,1768375854082,-400.0,0.00017534,2]
[401787883,1768375854092,-4000.0,0.00017534,2]
[401787885,1768375854102,-4000.0,0.00017534,2]
[401787887,1768375854112,-4000.0,0.00017534,2]
[401787888,1768375854122,-728.0,0.00017545,2]
[401787890,1768375854132,-728.0,0.00017545,2]
[401787892,1768375854142,-160.0,0.00017554,5]
[401787894,1768375854151,-491.12165105,0.00017573,18]
[401787896,1768375854160,-2137.48177052,0.000176,2]
[401787898,1768375854169,-4500.0,0.00017656,2]
[401787900,1768375854179,-699.34641428,0.00017656,2]
[401787901,1768375854188,-4500.0,0.00017656,2]
[401787903,1768375854198,-2040.44472477,0.00017656,2]
[401787904,1768375854207,-4500.0,0.00017656,2]
[401787905,1768375854215,-167.0299036,0.000177,2]
[401787906,1768375854224,-160.0,0.00017744,6]
[401787907,1768375854233,-992.48,0.000178,2]
[401787908,1768375854242,-5000.0,0.000178,2]
[401787909,1768375854252,-1000.0,0.000178,2]
[401787910,1768375854262,-1060.1,0.00017808,2]
[401787911,1768375854271,-400.30202268,0.00017842,2]
[401787912,1768375854280,-162.0,0.000179,2]
[401787913,1768375854289,-160.0,0.00017934,7]
[401787914,1768375854298,-201.34247819,0.00017997,2]
[401787915,1768375854307,-223.46847972,0.00017997,2]
[401787916,1768375854316,-77845.04334054,0.00017998,2]
[401787917,1768375854326,-135360.43169901,0.00018,2]
[401787918,1768375854335,-15152.55211292,0.00018,2]
[401787919,1768375854344,-499.99999901,0.00018,2]
[401787920,1768375854352,-1000.0,0.00018,2]
[401787921,1768375854362,-39769.91253842,0.00018,5]
[401787922,1768375854371,-3709.10266379,0.00018038,2]
[401787923,1768375854380,-767.7842514,0.00018045,2]
[401787924,1768375854389,-2700.0,0.00018056,2]
[401787925,1768375854398,-1060.1,0.00018082,2]
[401787926,1768375854407,-4500.0,0.00018082,2]
[401787927,1768375854415,-4500.0,0.00018082,2]
[401787928,1768375854424,-4500.0,0.00018082,2]
[401787929,1768375854433,-239186.2342698,0.00018082,3]
[401787930,1768375854442,-160.0,0.00018125,8]
[401787931,1768375854451,-1851.0,0.00018163,2]
[401787932,1768375854460,-2258.0,0.00018163,2]
[401787933,1768375854468,-491.12165105,0.0001819,19]
[401787934,1768375854477,-155.06,0.000182,2]
[401787935,1768375854486,-150.95,0.000182,2]
[401787936,1768375854495,-2850.7009383,0.00018204,2]
[401787938,1768375854504,-5000.0,0.00018204,2]
[401787939,1768375854514,-5000.0,0.00018204,2]
[401787940,1768375854524,-728.0,0.0001822,2]
[401787942,1768375854532,-1157.97518826,0.00018245,2]
[401787944,1768375854542,-1300.0,0.000183,2]
[401787946,1768375854551,-150.15,0.000183,2]
[401787948,1768375854560,-651.16,0.000183,2]
[401787950,1768375854570,-151.3,0.000183,2]
[401787952,1768375854579,-992.48,0.000183,2]
[401787954,1768375854589,-160.0,0.00018315,9]
[401787956,1768375854598,-1060.1,0.00018356,2]
[401787958,1768375854608,-3200.0,0.00018356,2]
[401787960,1768375854618,-1504.104065,0.00018489,2]
[401787962,1768375854627,-693.510903,0.00018493,2]
[401787964,1768375854636,-1000.0,0.000185,2]
[401787966,1768375854646,-160.0,0.00018505,10]
[401787968,1768375854655,-728.0,0.0001854,2]
[401787970,1768375854664,-728.0,0.0001854,2]
[401787972,1768375854673,-3846.33946235,0.00018586,2]
[401787974,1768375854683,-796.19226871,0.00018593,2]
[401787976,1768375854693,-3000.0,0.00018604,2]
[401787978,1768375854702,-1060.1,0.0001863,2]
[401787980,1768375854711,-600.0,0.0001863,2]
[401787982,1768375854721,-5000.0,0.0001863,2]
[401787984,1768375854730,-5000.0,0.0001863,2]
[401787986,1768375854739,-5000.0,0.0001863,2]
[401787988,1768375854748,-160.0,0.00018696,11]
[401787990,1768375854758,-1000.0,0.00018739,2]
[401787992,1768375854768,-492.0,0.00018739,2]
[401787994,1768375854777,-5500.0,0.00018752,2]
[401787996,1768375854786,-5500.0,0.00018752,2]
[401787998,1768375854796,-1500.0,0.000188,2]
[401788000,1768375854805,-491.12165105,0.00018807,21]
[401788002,1768375854814,-728.0,0.0001886,2]
[401788004,1768375854824,-5000.0,0.00018863,2]
[401788006,1768375854834,-160.0,0.00018886,12]
[401788008,1768375854843,-225.45912281,0.00018886,5]
[401788010,1768375854852,-160.0,0.00018886,3]
[401788012,1768375854862,-160.0,0.00018886,5]
[401788014,1768375854871,-651.16,0.000189,2]
[401788016,1768375854882,-992.48,0.000189,2]
[401788018,1768375854891,-303.10001603,0.000189,2]
[401788020,1768375854901,-303.10001603,0.000189,2]
[401788022,1768375854910,-1060.1,0.00018904,2]
[401788024,1768375854920,-10000.0,0.00019,2]
[401788026,1768375854929,-150.15,0.00019,2]
[401788028,1768375854939,-151.3,0.00019,2]
[401788030,1768375854948,-2603.49,0.00019,2]
[401788043,1768375855070,-17966.48265946,0.00019,2]
[401788045,1768375855080,-1000.0,0.00019,2]
[401788047,1768375855090,-303.10001603,0.00019089,2]
[401788049,1768375855100,-303.10001603,0.00019089,2]
[401788051,1768375855110,-825.65138265,0.00019141,2]
[401788053,1768375855120,-3300.0,0.00019152,2]
[401788055,1768375855129,-507.1352,0.00019178,2]
[401788057,1768375855138,-1060.1,0.00019178,2]
[401788059,1768375855148,-507.1352,0.00019178,2]
[401788061,1768375855158,-507.1352,0.00019178,2]
[401788064,1768375855167,-200.0,0.00019178,2]
[401788065,1768375855176,-507.1352,0.00019178,2]
[401788067,1768375855186,-507.1352,0.00019178,2]
[401788070,1768375855195,-5000.0,0.00019178,2]
[401788071,1768375855204,-5000.0,0.00019178,2]
[401788074,1768375855214,-5000.0,0.00019178,2]
[401788075,1768375855223,-5000.0,0.00019178,2]
[401788078,1768375855233,-5000.0,0.00019178,2]
[401788080,1768375855242,-5000.0,0.00019178,2]
[401788081,1768375855252,-5000.0,0.00019178,2]
[401788084,1768375855264,-5000.0,0.00019178,2]
[401788086,1768375855274,-5000.0,0.00019178,2]
[401788087,1768375855283,-2000.07602471,0.00019178,2]
[401788089,1768375855293,-151.0,0.00019178,2]
[401788091,1768375855302,-151.0,0.00019178,2]
[401788093,1768375855312,-151.0,0.00019178,2]
[401788095,1768375855321,-151.0,0.00019178,2]
[401788098,1768375855333,-151.0,0.00019178,2]
[401788099,1768375855342,-151.0,0.00019178,2]
[401788102,1768375855351,-151.0,0.00019178,2]
[401788103,1768375855360,-151.0,0.00019178,2]
[401788106,1768375855370,-151.0,0.00019178,2]
[401788107,1768375855379,-151.0,0.00019178,2]
[401788109,1768375855388,-151.0,0.00019178,2]
[401788112,1768375855398,-151.0,0.00019178,2]
[401788114,1768375855408,-177.23153386,0.00019178,2]
[401788116,1768375855417,-151.0,0.00019178,2]
[401788118,1768375855426,-151.0,0.00019178,2]
[401788120,1768375855435,-151.0,0.00019178,2]
[401788122,1768375855445,-151.000021,0.00019178,2]
[401788124,1768375855455,-633.503416,0.00019178,2]
[401788126,1768375855464,-633.503416,0.00019178,2]
[401788128,1768375855474,-633.503416,0.00019178,2]
[401788130,1768375855484,-633.503416,0.00019178,2]
[401788132,1768375855493,-633.503416,0.00019178,2]
[401788134,1768375855503,-633.503416,0.00019178,2]
[401788136,1768375855512,-633.503416,0.00019178,2]
[401788138,1768375855522,-633.503416,0.00019178,2]
[401788140,1768375855531,-633.503416,0.00019178,2]
[401788142,1768375855540,-633.503416,0.00019178,2]
[401788144,1768375855549,-633.503416,0.00019178,2]
[401788146,1768375855559,-633.503416,0.00019178,2]
[401788148,1768375855568,-633.503416,0.00019178,2]
[401788150,1768375855577,-633.503416,0.00019178,2]
[401788152,1768375855587,-633.503416,0.00019178,2]
[401788154,1768375855596,-633.503416,0.00019178,2]
[401788156,1768375855604,-633.503416,0.00019178,2]
[401788158,1768375855613,-633.503416,0.00019178,2]
[401788160,1768375855622,-633.503416,0.00019178,2]
[401788161,1768375855631,-633.503418,0.00019178,2]
[401788163,1768375855640,-5500.0,0.00019178,2]
[401788166,1768375855649,-5500.0,0.00019178,2]
[401788168,1768375855658,-5500.0,0.00019178,2]
[401788169,1768375855667,-728.0,0.0001918,2]
[401788172,1768375855676,-4030.44,0.000192,2]
[401788173,1768375855685,-40340.44,0.000192,2]
[401788175,1768375855694,-267.88,0.000192,2]
[401788177,1768375855703,-253.24,0.000192,2]
[401788179,1768375855712,-167.76,0.000192,2]
[401788181,1768375855722,-500.99801519,0.00019205,5]
[401788183,1768375855731,-500.0,0.00019262,7]
[401788186,1768375855740,-303.10001603,0.00019278,2]
[401788188,1768375855750,-304.04513126,0.00019278,2]
[401788189,1768375855759,-1328.0,0.000193,3]
[401788192,1768375855769,-6000.0,0.000193,2]
[401788193,1768375855778,-6000.0,0.000193,2]
[401788196,1768375855788,-155.06,0.000194,2]
[401788197,1768375855797,-651.16,0.000194,2]
[401788200,1768375855807,-992.48,0.000194,2]
[401788201,1768375855816,-377.94,0.000194,2]
[401788204,1768375855826,-491.12165105,0.00019424,22]
[401788205,1768375855835,-1060.1,0.00019452,2]
[401788208,1768375855845,-307.60380185,0.00019452,2]
[401788210,1768375855855,-303.10001603,0.00019467,2]
[401788211,1768375855864,-232.1503216,0.00019475,2]
[401788213,1768375855873,-153.0,0.00019475,2]
[401788215,1768375855882,-153.0,0.00019475,2]
[401788217,1768375855892,-153.0,0.00019475,2]
[401788219,1768375855901,-153.0,0.00019475,2]
[401788221,1768375855911,-1000.0,0.000195,2]
[401788224,1768375855921,-18780.42235644,0.00019571,2]
[401788226,1768375855930,-150.95,0.000196,2]
[401788227,1768375855939,-303.10001603,0.00019656,2]
[401788229,1768375855948,-14150.53090947,0.0001968,2]
[401788231,1768375855958,-150.15,0.000197,2]
[401788233,1768375855967,-151.3,0.000197,2]
[401788235,1768375855977,-5000.0,0.000197,2]
[401788238,1768375855988,-456.20051056,0.000197,2]
[401788240,1768375855997,-728.0,0.00019701,2]
[401788242,1768375856006,-800.0,0.00019726,2]
[401788244,1768375856015,-250.0,0.00019726,2]
[401788246,1768375856024,-1946.58201638,0.00019726,2]
[401788248,1768375856034,-6000.0,0.00019726,2]
[401788250,1768375856043,-6000.0,0.00019726,2]
[401788252,1768375856052,-250.0,0.00019726,2]
[401788254,1768375856062,-1258.927975,0.0001976,5]
[401788256,1768375856071,-1000.0,0.0001978,5]
[401788258,1768375856080,-1000.0,0.000198,5]
[401788259,1768375856090,-2000.0,0.00019814,3]
[401788262,1768375856099,-1000.0,0.0001982,5]
[401788263,1768375856108,-2000.0,0.00019823,3]
[401788266,1768375856118,-2000.0,0.00019832,3]
[401788267,1768375856127,-2000.0,0.00019832,3]
[401788269,1768375856137,-1000.0,0.0001984,5]
[401788272,1768375856146,-2000.0,0.00019841,3]
[401788274,1768375856155,-2000.0,0.00019841,3]
[401788276,1768375856165,-454.65002405,0.00019845,4]
[401788278,1768375856174,-6500.0,0.00019848,2]
[401788280,1768375856183,-6500.0,0.00019848,2]
[401788281,1768375856192,-2000.0,0.0001985,3]
[401788283,1768375856201,-2000.0,0.0001985,3]
[401788286,1768375856210,-2000.0,0.00019858,3]
[401788288,1768375856219,-2000.0,0.00019858,3]
[401788290,1768375856228,-1000.0,0.0001986,5]
[401788292,1768375856239,-2000.0,0.00019867,3]
[401788294,1768375856251,-2000.0,0.00019867,3]
[401788296,1768375856265,-2000.0,0.00019876,3]
[401788298,1768375856274,-2000.0,0.00019876,3]
[401788300,1768375856283,-1591.0092294,0.00019876,3]
[401788302,1768375856293,-2000.0,0.00019876,3]
[401788303,1768375856302,-1000.0,0.0001988,5]
[401788305,1768375856311,-651.16,0.000199,2]
[401788308,1768375856320,-992.48,0.000199,2]
[401788310,1768375856331,-1000.0,0.000199,5]
[401788312,1768375856340,-1000.0,0.0001992,5]
[401788313,1768375856349,-1000.0,0.0001994,5]
[401788315,1768375856358,-1000.0,0.0001996,5]
[401788317,1768375856367,-3162.0,0.00019974,2]
[401788319,1768375856377,-1000.0,0.0001998,5]
[401788321,1768375856386,-1005.0,0.0002,6]
[401788323,1768375856395,-2978.0,0.0002,2]
[401788325,1768375856405,-4139.0,0.0002,2]
[401788327,1768375856414,-535.0,0.0002,2]
[401788329,1768375856423,-150.97443892,0.0002,2]
[401788331,1768375856432,-371.60289959,0.0002,2]
[401788333,1768375856441,-775.19957505,0.0002,2]
[401788335,1768375856451,-524.0,0.0002,2]
[401788337,1768375856460,-205.35775222,0.0002,2]
[401788339,1768375856469,-663.8400624,0.0002,2]
[401788341,1768375856478,-14700.91219005,0.0002,2]
[401788343,1768375856489,-985.0,0.0002,2]
[401788345,1768375856498,-31770.97451242,0.0002,2]
[401788357,1768375856507,-163524.2208646,0.0002,7]
[401788360,1768375856619,-1035.0,0.0002,2]
[401788362,1768375856633,-168410.48198,0.0002,2]
[401788364,1768375856642,-1000.0,0.0002,5]
[401788366,1768375856651,-300.0,0.0002,2]
[401788368,1768375856661,-1000.0,0.0002,2]
[401788370,1768375856670,-507.1348,0.0002,4]
[401788372,1768375856679,-507.1348,0.0002,4]
[401788374,1768375856688,-507.1352,0.0002,4]
[401788376,1768375856699,-199.9948,0.0002,4]
[401788378,1768375856708,-151.55000802,0.0002,2]
[401788380,1768375856718,-261.56474834,0.0002,7]
[401788382,1768375856728,-77401.68985457,0.0002,2]
[401788384,1768375856737,-23000.0,0.0002,2]
[401788386,1768375856747,-82346.01286359,0.0002,7]
[401788388,1768375856757,-202.7514447,0.0002,2]
[401788390,1768375856766,-504.32904356,0.0002,2]
[401788392,1768375856775,-507.1352,0.0002,4]
[401788394,1768375856785,-2000.0,0.0002,7]
[401788396,1768375856795,-454.65002405,0.00020034,4]
[401788398,1768375856805,-491.12165105,0.0002004,23]
[401788400,1768375856814,-154.91,0.000201,2]
[401788402,1768375856824,-503.71435101,0.0002013,2]
[401788404,1768375856833,-629.0,0.00020159,2]
[401788406,1768375856843,-1367.0,0.00020159,2]
[401788408,1768375856852,-417.0,0.00020159,2]
[401788410,1768375856862,-417.0,0.00020159,2]
[401788412,1768375856872,-715.0,0.00020159,2]
[401788414,1768375856882,-178.0,0.00020159,2]
[401788416,1768375856891,-5000.0,0.00020164,2]
[401788418,1768375856901,-454.65002405,0.00020223,4]
[401788420,1768375856911,-1279.15863819,0.00020245,2]
[401788423,1768375856920,-200.91058964,0.00020274,2]
[401788425,1768375856932,-4902.72600724,0.00020274,2]
[401788427,1768375856941,-6500.0,0.00020274,2]
[401788429,1768375856951,-350.0,0.00020274,2]
[401788431,1768375856960,-4030.44,0.000203,2]
[401788433,1768375856969,-40340.44,0.000203,2]
[401788435,1768375856979,-267.88,0.000203,2]
[401788437,1768375856988,-253.24,0.000203,2]
[401788439,1768375856998,-728.0,0.00020341,2]
[401788441,1768375857007,-573.24025849,0.00020396,2]
[401788443,1768375857017,-5183.87260271,0.00020396,2]
[401788445,1768375857026,-150.15,0.000204,2]
[401788447,1768375857036,-651.16,0.000204,2]
[401788449,1768375857045,-151.3,0.000204,2]
[401788451,1768375857055,-992.48,0.000204,2]